Workbook

Sheet BLOOD SUGAR DATA
B2: BLOOD SUGAR TRACKING
B4: CHARTED PROGRESS
B21: DATA ENTRY
B23: DATE | C23: TIME | D23: BLOOD SUGAR (mg/dL) | E23: RUNNING AVERAGE
B24: 2012-11-01 | C24: 08:45:00 | D24: 126 | E24: =AVERAGE(INDEX(tblBloodSugar[BLOOD SUGAR (mg/dL)],1,1):tblBloodSugar[[#This Row],[BLOOD SUGAR (mg/dL)]]) -> 126.0
B25: 2012-11-01 | C25: 12:30:00 | D25: 115 | E25: =AVERAGE(INDEX(tblBloodSugar[BLOOD SUGAR (mg/dL)],1,1):tblBloodSugar[[#This Row],[BLOOD SUGAR (mg/dL)]]) -> 120.5
B26: 2012-11-01 | C26: 19:15:00 | D26: 100 | E26: =AVERAGE(INDEX(tblBloodSugar[BLOOD SUGAR (mg/dL)],1,1):tblBloodSugar[[#This Row],[BLOOD SUGAR (mg/dL)]]) -> 113.7
B27: 2012-11-02 | C27: 08:00:00 | D27: 132 | E27: =AVERAGE(INDEX(tblBloodSugar[BLOOD SUGAR (mg/dL)],1,1):tblBloodSugar[[#This Row],[BLOOD SUGAR (mg/dL)]]) -> 118.3
B28: 2012-11-02 | C28: 12:15:00 | D28: 100 | E28: =AVERAGE(INDEX(tblBloodSugar[BLOOD SUGAR (mg/dL)],1,1):tblBloodSugar[[#This Row],[BLOOD SUGAR (mg/dL)]]) -> 114.6
B29: 2012-11-02 | C29: 18:45:00 | D29: 112 | E29: =AVERAGE(INDEX(tblBloodSugar[BLOOD SUGAR (mg/dL)],1,1):tblBloodSugar[[#This Row],[BLOOD SUGAR (mg/dL)]]) -> 114.2
B30: 2012-11-03 | C30: 07:30:00 | D30: 117 | E30: =AVERAGE(INDEX(tblBloodSugar[BLOOD SUGAR (mg/dL)],1,1):tblBloodSugar[[#This Row],[BLOOD SUGAR (mg/dL)]]) -> 114.6
B31: 2012-11-03 | C31: 11:30:00 | D31: 115 | E31: =AVERAGE(INDEX(tblBloodSugar[BLOOD SUGAR (mg/dL)],1,1):tblBloodSugar[[#This Row],[BLOOD SUGAR (mg/dL)]]) -> 114.6
B32: 2012-11-03 | C32: 17:00:00 | D32: 112 | E32: =AVERAGE(INDEX(tblBloodSugar[BLOOD SUGAR (mg/dL)],1,1):tblBloodSugar[[#This Row],[BLOOD SUGAR (mg/dL)]]) -> 114.3
B33: 2012-11-04 | C33: 07:30:00 | D33: 120 | E33: =AVERAGE(INDEX(tblBloodSugar[BLOOD SUGAR (mg/dL)],1,1):tblBloodSugar[[#This Row],[BLOOD SUGAR (mg/dL)]]) -> 114.9
B34: 2012-11-04 | C34: 11:30:00 | D34: 118 | E34: =AVERAGE(INDEX(tblBloodSugar[BLOOD SUGAR (mg/dL)],1,1):tblBloodSugar[[#This Row],[BLOOD SUGAR (mg/dL)]]) -> 115.2
B35: 2012-11-04 | C35: 17:00:00 | D35: 102 | E35: =AVERAGE(INDEX(tblBloodSugar[BLOOD SUGAR (mg/dL)],1,1):tblBloodSugar[[#This Row],[BLOOD SUGAR (mg/dL)]]) -> 114.1
B36: 2012-11-05 | C36: 07:30:00 | D36: 124 | E36: =AVERAGE(INDEX(tblBloodSugar[BLOOD SUGAR (mg/dL)],1,1):tblBloodSugar[[#This Row],[BLOOD SUGAR (mg/dL)]]) -> 114.8
B37: 2012-11-05 | C37: 11:30:00 | D37: 100 | E37: =AVERAGE(INDEX(tblBloodSugar[BLOOD SUGAR (mg/dL)],1,1):tblBloodSugar[[#This Row],[BLOOD SUGAR (mg/dL)]]) -> 113.8
B38: 2012-11-05 | C38: 17:00:00 | D38: 99 | E38: =AVERAGE(INDEX(tblBloodSugar[BLOOD SUGAR (mg/dL)],1,1):tblBloodSugar[[#This Row],[BLOOD SUGAR (mg/dL)]]) -> 112.8
B39: 2012-11-06 | C39: 07:30:00 | D39: 132 | E39: =AVERAGE(INDEX(tblBloodSugar[BLOOD SUGAR (mg/dL)],1,1):tblBloodSugar[[#This Row],[BLOOD SUGAR (mg/dL)]]) -> 114.0
B40: 2012-11-06 | C40: 11:30:00 | D40: 120 | E40: =AVERAGE(INDEX(tblBloodSugar[BLOOD SUGAR (mg/dL)],1,1):tblBloodSugar[[#This Row],[BLOOD SUGAR (mg/dL)]]) -> 114.4
B41: 2012-11-06 | C41: 17:00:00 | D41: 100 | E41: =AVERAGE(INDEX(tblBloodSugar[BLOOD SUGAR (mg/dL)],1,1):tblBloodSugar[[#This Row],[BLOOD SUGAR (mg/dL)]]) -> 113.6
B42: 2012-11-07 | C42: 07:30:00 | D42: 113 | E42: =AVERAGE(INDEX(tblBloodSugar[BLOOD SUGAR (mg/dL)],1,1):tblBloodSugar[[#This Row],[BLOOD SUGAR (mg/dL)]]) -> 113.5
B43: 2012-11-07 | C43: 12:30:00 | D43: 111 | E43: =AVERAGE(INDEX(tblBloodSugar[BLOOD SUGAR (mg/dL)],1,1):tblBloodSugar[[#This Row],[BLOOD SUGAR (mg/dL)]]) -> 113.4
B44: 2012-11-07 | C44: 18:30:00 | D44: 115 | E44: =AVERAGE(INDEX(tblBloodSugar[BLOOD SUGAR (mg/dL)],1,1):tblBloodSugar[[#This Row],[BLOOD SUGAR (mg/dL)]]) -> 113.5
B45: 2012-11-07 | C45: 18:30:00 | D45: 115 | E45: =AVERAGE(INDEX(tblBloodSugar[BLOOD SUGAR (mg/dL)],1,1):tblBloodSugar[[#This Row],[BLOOD SUGAR (mg/dL)]]) -> 113.5
